[Event "Early-Titled-Tuesday-Blitz-October-24-2023"]
[Site "Chess.com"]
[Date "2023.10.24"]
[Round "11"]
[White "Maect19"]
[Black "Khromkin"]
[Result "1/2-1/2"]
[WhiteElo "2310"]
[BlackElo "2504"]
[TimeControl "180+1"]
[EndTime "10:02:23 PDT"]
[Termination "Game drawn by repetition"]

1. d4 {[%clk 0:03:00.9]} 1... d5 {[%clk 0:02:57.1]} 2. Nf3 {[%clk 0:03:00.4]}
2... a6 {[%clk 0:02:56.5]} 3. e3 {[%clk 0:02:59.4]} 3... Bg4 {[%clk 0:02:54]} 4.
Nbd2 {[%clk 0:02:55.9]} 4... e6 {[%clk 0:02:53]} 5. h3 {[%clk 0:02:55.8]} 5...
Bh5 {[%clk 0:02:52.2]} 6. Bd3 {[%clk 0:02:53.9]} 6... c5 {[%clk 0:02:50.7]} 7.
O-O {[%clk 0:02:51.7]} 7... c4 {[%clk 0:02:49.3]} 8. Be2 {[%clk 0:02:50.6]} 8...
f5 {[%clk 0:02:49.9]} 9. Ne5 {[%clk 0:02:48.8]} 9... Bxe2 {[%clk 0:02:47.5]} 10.
Qxe2 {[%clk 0:02:49.7]} 10... Nf6 {[%clk 0:02:47.5]} 11. f4 {[%clk 0:02:48.9]}
11... Nbd7 {[%clk 0:02:41.7]} 12. c3 {[%clk 0:02:45.5]} 12... Bd6 {[%clk
0:02:37.4]} 13. b3 {[%clk 0:02:44.7]} 13... b5 {[%clk 0:02:36.1]} 14. a4 {[%clk
0:02:40.1]} 14... O-O {[%clk 0:02:33.1]} 15. Ba3 {[%clk 0:02:27.3]} 15... Bxa3
{[%clk 0:02:31.3]} 16. Rxa3 {[%clk 0:02:26.1]} 16... Nxe5 {[%clk 0:02:30.5]} 17.
fxe5 {[%clk 0:02:25.5]} 17... Ne4 {[%clk 0:02:26.9]} 18. Nxe4 {[%clk 0:02:24.8]}
18... fxe4 {[%clk 0:02:27.5]} 19. Rxf8+ {[%clk 0:02:24.1]} 19... Qxf8 {[%clk
0:02:26.9]} 20. b4 {[%clk 0:02:13.5]} 20... a5 {[%clk 0:01:50.5]} 21. axb5
{[%clk 0:02:07.5]} 21... axb4 {[%clk 0:01:50.7]} 22. Rxa8 {[%clk 0:02:06.5]}
22... Qxa8 {[%clk 0:01:46.1]} 23. cxb4 {[%clk 0:02:04.1]} 23... Qb7 {[%clk
0:01:25]} 24. Qg4 {[%clk 0:01:57.7]} 24... Qb6 {[%clk 0:01:24.4]} 25. Kf2 {[%clk
0:01:50.1]} 25... c3 {[%clk 0:01:22.9]} 26. Ke1 {[%clk 0:01:48.3]} 26... Kf8
{[%clk 0:01:01]} 27. Qh4 {[%clk 0:01:40.8]} 27... h6 {[%clk 0:00:53.4]} 28. Qf2+
{[%clk 0:01:36.1]} 28... Ke8 {[%clk 0:00:50.4]} 29. Qe2 {[%clk 0:01:34.5]} 29...
Qa7 {[%clk 0:00:49]} 30. Qc2 {[%clk 0:01:23.2]} 30... Qa1+ {[%clk 0:00:44.7]}
31. Ke2 {[%clk 0:01:23]} 31... Qb2 {[%clk 0:00:44.8]} 32. Kd1 {[%clk 0:01:23]}
32... Qxb4 {[%clk 0:00:44.9]} 33. b6 {[%clk 0:01:17.3]} 33... Kd7 {[%clk
0:00:44.7]} 34. Qa2 {[%clk 0:01:07.8]} 34... Qxb6 {[%clk 0:00:32.4]} 35. Kc2
{[%clk 0:01:06.6]} 35... Qb2+ {[%clk 0:00:19.3]} 36. Qxb2 {[%clk 0:01:06.2]}
36... cxb2 {[%clk 0:00:20.2]} 37. Kxb2 {[%clk 0:01:06.4]} 37... Kc6 {[%clk
0:00:20.8]} 38. Kc3 {[%clk 0:00:57.2]} 38... Kb5 {[%clk 0:00:21.3]} 39. Kb3
{[%clk 0:00:56.7]} 39... g6 {[%clk 0:00:20.6]} 40. g3 {[%clk 0:00:56.1]} 40...
Ka5 {[%clk 0:00:17.5]} 41. Ka3 {[%clk 0:00:55.5]} 41... Kb5 {[%clk 0:00:18]} 42.
Kb3 {[%clk 0:00:55.5]} 42... g5 {[%clk 0:00:17.5]} 43. g4 {[%clk 0:00:54.6]}
43... Ka5 {[%clk 0:00:18.1]} 44. Ka3 {[%clk 0:00:54.3]} 44... Kb5 {[%clk
0:00:18.7]} 45. Kb3 {[%clk 0:00:54.2]} 45... Ka5 {[%clk 0:00:19.3]} 46. Ka3
{[%clk 0:00:54.3]} 46... Kb5 {[%clk 0:00:19.8]} 47. Kb3 {[%clk 0:00:54.3]}
1/2-1/2

[Event "Early-Titled-Tuesday-Blitz-October-24-2023"]
[Site "Chess.com"]
[Date "2023.10.24"]
[Round "11"]
[White "Beca95"]
[Black "mind1mover"]
[Result "1/2-1/2"]
[WhiteElo "2926"]
[BlackElo "2825"]
[TimeControl "180+1"]
[EndTime "10:02:31 PDT"]
[Termination "Game drawn by repetition"]

1. c4 {[%clk 0:03:00.9]} 1... e5 {[%clk 0:02:59.4]} 2. Nf3 {[%clk 0:03:00.8]}
2... Nc6 {[%clk 0:02:59.8]} 3. Nc3 {[%clk 0:03:00.5]} 3... Bb4 {[%clk
0:02:58.5]} 4. Nd5 {[%clk 0:02:59.5]} 4... a5 {[%clk 0:02:58.7]} 5. a3 {[%clk
0:02:58.6]} 5... Be7 {[%clk 0:02:58.9]} 6. d3 {[%clk 0:02:54.9]} 6... Nf6 {[%clk
0:02:58.7]} 7. g3 {[%clk 0:02:54.4]} 7... O-O {[%clk 0:02:56.5]} 8. Bg2 {[%clk
0:02:53]} 8... d6 {[%clk 0:02:56.3]} 9. b3 {[%clk 0:02:53.4]} 9... Re8 {[%clk
0:02:46.3]} 10. Bb2 {[%clk 0:02:52.9]} 10... Bf8 {[%clk 0:02:44.3]} 11. O-O
{[%clk 0:02:49.3]} 11... Be6 {[%clk 0:02:27.3]} 12. e4 {[%clk 0:02:47.6]} 12...
Bg4 {[%clk 0:02:26.5]} 13. h3 {[%clk 0:02:47.1]} 13... Bxf3 {[%clk 0:02:26.4]}
14. Bxf3 {[%clk 0:02:47.7]} 14... Nd7 {[%clk 0:02:15]} 15. Bg2 {[%clk
0:02:35.2]} 15... Nc5 {[%clk 0:02:11.9]} 16. f4 {[%clk 0:02:31.2]} 16... a4
{[%clk 0:02:02.6]} 17. b4 {[%clk 0:02:14.5]} 17... Nb3 {[%clk 0:02:02.6]} 18.
Ra2 {[%clk 0:02:08.5]} 18... Ncd4 {[%clk 0:02:02.7]} 19. f5 {[%clk 0:01:57.1]}
19... c6 {[%clk 0:01:57.3]} 20. Ne3 {[%clk 0:01:57.1]} 20... Qg5 {[%clk
0:01:54.9]} 21. Qe1 {[%clk 0:01:55.5]} 21... h5 {[%clk 0:01:16.9]} 22. Bc3
{[%clk 0:01:53]} 22... b5 {[%clk 0:01:08.2]} 23. h4 {[%clk 0:01:51.8]} 23... Qh6
{[%clk 0:01:08.1]} 24. Raf2 {[%clk 0:01:49.4]} 24... bxc4 {[%clk 0:01:01.4]} 25.
dxc4 {[%clk 0:01:50.3]} 25... Be7 {[%clk 0:00:50.6]} 26. f6 {[%clk 0:01:32.2]}
26... Bxf6 {[%clk 0:00:50.8]} 27. Rxf6 {[%clk 0:01:31.9]} 27... gxf6 {[%clk
0:00:51.5]} 28. Bh3 {[%clk 0:01:30.3]} 28... Kh8 {[%clk 0:00:32.3]} 29. Kh2
{[%clk 0:01:26]} 29... Rg8 {[%clk 0:00:30.1]} 30. Qf2 {[%clk 0:01:16.6]} 30...
Rg6 {[%clk 0:00:23.4]} 31. Bf5 {[%clk 0:00:56.8]} 31... Rg7 {[%clk 0:00:18.2]}
32. Rg1 {[%clk 0:00:56.5]} 32... Rag8 {[%clk 0:00:18.4]} 33. Rg2 {[%clk
0:00:57]} 33... Nc1 {[%clk 0:00:11.7]} 34. Bd2 {[%clk 0:00:56.4]} 34... Ncb3
{[%clk 0:00:09.8]} 35. Bc3 {[%clk 0:00:54.2]} 35... Rg6 {[%clk 0:00:09.8]} 36.
Rg1 {[%clk 0:00:44.7]} 36... R6g7 {[%clk 0:00:08.9]} 37. Rg2 {[%clk 0:00:29.4]}
1/2-1/2

[Event "Early-Titled-Tuesday-Blitz-October-24-2023"]
[Site "Chess.com"]
[Date "2023.10.24"]
[Round "11"]
[White "fen_fire"]
[Black "cthulhuuu"]
[Result "0-1"]
[WhiteElo "2524"]
[BlackElo "2428"]
[TimeControl "180+1"]
[EndTime "10:02:32 PDT"]
[Termination "cthulhuuu won on time"]

1. Nf3 {[%clk 0:03:00.9]} 1... Nf6 {[%clk 0:02:58.7]} 2. e3 {[%clk 0:02:59.9]}
2... g6 {[%clk 0:02:58.5]} 3. b4 {[%clk 0:03:00.2]} 3... Bg7 {[%clk 0:02:58.9]}
4. Bb2 {[%clk 0:03:00.9]} 4... O-O {[%clk 0:02:59.4]} 5. Be2 {[%clk 0:03:00.9]}
5... d6 {[%clk 0:02:59.9]} 6. O-O {[%clk 0:03:00.9]} 6... e5 {[%clk 0:03:00.2]}
7. d4 {[%clk 0:03:01.1]} 7... e4 {[%clk 0:03:00.5]} 8. Nfd2 {[%clk 0:03:01.2]}
8... Re8 {[%clk 0:03:01.1]} 9. c4 {[%clk 0:03:01.8]} 9... Nbd7 {[%clk
0:03:01.5]} 10. Nc3 {[%clk 0:03:02.3]} 10... Nf8 {[%clk 0:03:02]} 11. a4 {[%clk
0:02:59.9]} 11... Bf5 {[%clk 0:03:02]} 12. a5 {[%clk 0:02:59.2]} 12... h5 {[%clk
0:03:01.2]} 13. b5 {[%clk 0:02:54]} 13... a6 {[%clk 0:02:54.2]} 14. Re1 {[%clk
0:02:46.2]} 14... N8h7 {[%clk 0:02:53.5]} 15. Nf1 {[%clk 0:02:46]} 15... Ng4
{[%clk 0:02:52.3]} 16. bxa6 {[%clk 0:02:36.3]} 16... bxa6 {[%clk 0:02:51.7]} 17.
Qb3 {[%clk 0:02:33.8]} 17... Rb8 {[%clk 0:02:47.5]} 18. Qa2 {[%clk 0:02:30.7]}
18... Qh4 {[%clk 0:02:24.5]} 19. g3 {[%clk 0:02:22.6]} 19... Qh3 {[%clk
0:02:20]} 20. Nd5 {[%clk 0:02:22.7]} 20... Bh6 {[%clk 0:02:09.5]} 21. Nf4 {[%clk
0:01:52.6]} 21... Bxf4 {[%clk 0:02:09]} 22. exf4 {[%clk 0:01:53.5]} 22... e3
{[%clk 0:01:52.5]} 23. f3 {[%clk 0:01:39.2]} 23... h4 {[%clk 0:00:51.4]} 24. Bc1
{[%clk 0:00:45.1]} 24... hxg3 {[%clk 0:00:25.9]} 25. hxg3 {[%clk 0:00:44.6]}
25... Nf2 {[%clk 0:00:26.1]} 26. Nh2 {[%clk 0:00:40.2]} 26... Qxg3+ {[%clk
0:00:24.9]} 27. Kf1 {[%clk 0:00:38.3]} 27... Nh3 {[%clk 0:00:21.9]} 0-1

[Event "Early-Titled-Tuesday-Blitz-October-24-2023"]
[Site "Chess.com"]
[Date "2023.10.24"]
[Round "11"]
[White "JimDiGrease"]
[Black "the_chess_child"]
[Result "1-0"]
[WhiteElo "2885"]
[BlackElo "2938"]
[TimeControl "180+1"]
[EndTime "10:02:33 PDT"]
[Termination "JimDiGrease won by resignation"]

1. d4 {[%clk 0:03:00.9]} 1... Nf6 {[%clk 0:02:59.4]} 2. c4 {[%clk 0:03:01.4]}
2... g6 {[%clk 0:02:59.9]} 3. h4 {[%clk 0:02:57.3]} 3... Bg7 {[%clk 0:02:59.2]}
4. Nc3 {[%clk 0:02:57.9]} 4... O-O {[%clk 0:02:58.8]} 5. e4 {[%clk 0:02:58.3]}
5... d6 {[%clk 0:02:59.2]} 6. Be2 {[%clk 0:02:58.6]} 6... Nbd7 {[%clk
0:02:58.7]} 7. h5 {[%clk 0:02:56.6]} 7... c5 {[%clk 0:02:56.8]} 8. d5 {[%clk
0:02:55.4]} 8... Ne5 {[%clk 0:02:57]} 9. h6 {[%clk 0:02:53.1]} 9... Bh8 {[%clk
0:02:56.5]} 10. f3 {[%clk 0:02:54]} 10... e6 {[%clk 0:02:55.9]} 11. Bg5 {[%clk
0:02:41.3]} 11... exd5 {[%clk 0:02:37.5]} 12. exd5 {[%clk 0:02:16]} 12... Re8
{[%clk 0:02:34.3]} 13. Kf1 {[%clk 0:02:00.9]} 13... Nxd5 {[%clk 0:01:58.1]} 14.
Nxd5 {[%clk 0:01:05.4]} 14... Qxg5 {[%clk 0:01:57.8]} 15. Nc7 {[%clk 0:00:59.1]}
15... Bf5 {[%clk 0:01:36]} 16. Nxa8 {[%clk 0:00:55.1]} 16... Rxa8 {[%clk
0:01:35.9]} 17. g4 {[%clk 0:00:37.4]} 17... Be6 {[%clk 0:01:28.6]} 18. Nh3
{[%clk 0:00:37.8]} 18... Qf6 {[%clk 0:01:22.8]} 19. Nf2 {[%clk 0:00:34.3]} 19...
Nxc4 {[%clk 0:01:18.8]} 20. Bxc4 {[%clk 0:00:33.7]} 20... Bxc4+ {[%clk
0:01:18.9]} 21. Kg2 {[%clk 0:00:34.6]} 21... Qxb2 {[%clk 0:01:17.6]} 22. Rb1
{[%clk 0:00:32.2]} 22... Qxa2 {[%clk 0:01:18]} 23. Rxb7 {[%clk 0:00:31.7]} 23...
Bd4 {[%clk 0:01:16.6]} 24. Qe1 {[%clk 0:00:18.1]} 24... Bd5 {[%clk 0:01:06]} 25.
Rd7 {[%clk 0:00:15.2]} 25... Qa6 {[%clk 0:00:43.9]} 26. Qe7 {[%clk 0:00:10.8]}
26... Qc8 {[%clk 0:00:33.2]} 27. Re1 {[%clk 0:00:11]} 27... a5 {[%clk
0:00:29.1]} 28. Rxd6 {[%clk 0:00:08.6]} 28... Be6 {[%clk 0:00:25.3]} 29. Rexe6
{[%clk 0:00:08.6]} 29... fxe6 {[%clk 0:00:25.4]} 30. Rd7 {[%clk 0:00:09.1]} 1-0

[Event "Early-Titled-Tuesday-Blitz-October-24-2023"]
[Site "Chess.com"]
[Date "2023.10.24"]
[Round "11"]
[White "InitiatingASC"]
[Black "parintele_chess"]
[Result "1-0"]
[WhiteElo "2332"]
[BlackElo "2241"]
[TimeControl "180+1"]
[EndTime "10:02:35 PDT"]
[Termination "InitiatingASC won on time"]

1. e4 {[%clk 0:02:55.4]} 1... e5 {[%clk 0:02:51.8]} 2. Nf3 {[%clk 0:02:55.2]}
2... Nc6 {[%clk 0:02:50.5]} 3. Bb5 {[%clk 0:02:54.3]} 3... a6 {[%clk 0:02:47.6]}
4. Ba4 {[%clk 0:02:51]} 4... Nf6 {[%clk 0:02:47.5]} 5. O-O {[%clk 0:02:50.5]}
5... Be7 {[%clk 0:02:47.8]} 6. Re1 {[%clk 0:02:49.1]} 6... b5 {[%clk 0:02:48.3]}
7. Bb3 {[%clk 0:02:49.1]} 7... O-O {[%clk 0:02:48.9]} 8. c3 {[%clk 0:02:49.2]}
8... d5 {[%clk 0:02:48.5]} 9. exd5 {[%clk 0:02:46.7]} 9... Nxd5 {[%clk
0:02:49.4]} 10. Nxe5 {[%clk 0:02:47.1]} 10... Nxe5 {[%clk 0:02:50.3]} 11. Rxe5
{[%clk 0:02:47.2]} 11... c6 {[%clk 0:02:51]} 12. d3 {[%clk 0:02:40.1]} 12... Bd6
{[%clk 0:02:44.2]} 13. Re1 {[%clk 0:02:38.8]} 13... Qh4 {[%clk 0:02:31.7]} 14.
g3 {[%clk 0:02:36.6]} 14... Qh3 {[%clk 0:02:32]} 15. Qf3 {[%clk 0:02:36.2]}
15... Bg4 {[%clk 0:02:28.3]} 16. Qg2 {[%clk 0:02:35.6]} 16... Qh5 {[%clk
0:02:28.9]} 17. Nd2 {[%clk 0:02:32.8]} 17... f5 {[%clk 0:02:13.6]} 18. Bxd5+
{[%clk 0:02:24.1]} 18... cxd5 {[%clk 0:02:05.8]} 19. Qxd5+ {[%clk 0:02:24.1]}
19... Kh8 {[%clk 0:02:06.4]} 20. Qxd6 {[%clk 0:02:24.5]} 20... Rae8 {[%clk
0:02:01]} 21. Re5 {[%clk 0:01:54.9]} 21... Rf6 {[%clk 0:01:55.6]} 22. Qc7 {[%clk
0:01:33.7]} 22... Rfe6 {[%clk 0:01:28.5]} 23. d4 {[%clk 0:01:30.1]} 23... Rxe5
{[%clk 0:01:26.5]} 24. dxe5 {[%clk 0:01:28.2]} 24... f4 {[%clk 0:01:26.8]} 25.
Nf1 {[%clk 0:01:00.7]} 25... f3 {[%clk 0:00:26.5]} 26. h4 {[%clk 0:00:51.9]}
26... Bh3 {[%clk 0:00:26.6]} 27. Ne3 {[%clk 0:00:33.5]} 27... g5 {[%clk
0:00:14.5]} 28. hxg5 {[%clk 0:00:26.1]} 28... Bg4 {[%clk 0:00:08.1]} 29. Nxg4
{[%clk 0:00:22.5]} 29... Qxg4 {[%clk 0:00:09]} 30. Qc6 {[%clk 0:00:22.7]} 30...
Rf8 {[%clk 0:00:07]} 31. Bf4 {[%clk 0:00:22]} 31... Qh3 {[%clk 0:00:06]} 32.
Qxf3 {[%clk 0:00:21.7]} 1-0

[Event "Early-Titled-Tuesday-Blitz-October-24-2023"]
[Site "Chess.com"]
[Date "2023.10.24"]
[Round "11"]
[White "K_A_S_T_O_R"]
[Black "jk13"]
[Result "1-0"]
[WhiteElo "2860"]
[BlackElo "2681"]
[TimeControl "180+1"]
[EndTime "10:02:37 PDT"]
[Termination "K_A_S_T_O_R won by resignation"]

1. e4 {[%clk 0:02:56.2]} 1... e5 {[%clk 0:02:59.5]} 2. Nf3 {[%clk 0:02:55.9]}
2... Nc6 {[%clk 0:03:00.2]} 3. Bb5 {[%clk 0:02:56.1]} 3... a6 {[%clk 0:03:00.4]}
4. Ba4 {[%clk 0:02:56.4]} 4... Nf6 {[%clk 0:03:01.1]} 5. O-O {[%clk 0:02:56.9]}
5... b5 {[%clk 0:03:01.8]} 6. Bb3 {[%clk 0:02:56.7]} 6... Bc5 {[%clk 0:03:02.7]}
7. d3 {[%clk 0:02:54.9]} 7... O-O {[%clk 0:03:02.4]} 8. c3 {[%clk 0:02:55.4]}
8... d6 {[%clk 0:03:02.4]} 9. h3 {[%clk 0:02:55]} 9... h6 {[%clk 0:03:02.4]} 10.
Re1 {[%clk 0:02:55.4]} 10... Re8 {[%clk 0:03:00.2]} 11. Nbd2 {[%clk 0:02:54.3]}
11... Bb6 {[%clk 0:03:00.2]} 12. Nf1 {[%clk 0:02:54.3]} 12... Ne7 {[%clk
0:03:01]} 13. Ng3 {[%clk 0:02:54.3]} 13... Ng6 {[%clk 0:03:01.7]} 14. Be3 {[%clk
0:02:54]} 14... Bxe3 {[%clk 0:03:01.1]} 15. fxe3 {[%clk 0:02:54.9]} 15... c5
{[%clk 0:02:54.1]} 16. Bc2 {[%clk 0:02:53.8]} 16... d5 {[%clk 0:02:48.2]} 17.
exd5 {[%clk 0:02:52.3]} 17... Nxd5 {[%clk 0:02:45]} 18. Qd2 {[%clk 0:02:50.6]}
18... Qc7 {[%clk 0:02:33.6]} 19. Qf2 {[%clk 0:02:45.9]} 19... Nf6 {[%clk
0:02:23.7]} 20. d4 {[%clk 0:02:35.7]} 20... e4 {[%clk 0:02:20]} 21. Nd2 {[%clk
0:02:35.1]} 21... Bb7 {[%clk 0:02:19.4]} 22. Nb3 {[%clk 0:02:26.8]} 22... Nd7
{[%clk 0:02:11.8]} 23. Rf1 {[%clk 0:02:24.8]} 23... Bd5 {[%clk 0:01:53.7]} 24.
Nf5 {[%clk 0:02:19.9]} 24... Bc4 {[%clk 0:01:45.7]} 25. Rfd1 {[%clk 0:02:12.8]}
25... cxd4 {[%clk 0:01:39.9]} 26. exd4 {[%clk 0:02:06.6]} 26... Nf4 {[%clk
0:01:33]} 27. Re1 {[%clk 0:02:05.9]} 27... Nd3 {[%clk 0:01:17.5]} 28. Bxd3
{[%clk 0:02:04.2]} 28... exd3 {[%clk 0:01:14.4]} 29. Nd2 {[%clk 0:02:02.7]}
29... Re6 {[%clk 0:01:00.3]} 30. Rxe6 {[%clk 0:01:55.1]} 30... Bxe6 {[%clk
0:01:00]} 31. Re1 {[%clk 0:01:42.9]} 31... Rb8 {[%clk 0:00:44.4]} 32. Ne7+
{[%clk 0:01:34.1]} 32... Kf8 {[%clk 0:00:40.3]} 33. Rxe6 {[%clk 0:01:32.1]}
33... Nf6 {[%clk 0:00:34.6]} 34. Rxf6 {[%clk 0:01:24.6]} 34... gxf6 {[%clk
0:00:35.5]} 35. Qxf6 {[%clk 0:01:21.9]} 35... Rb6 {[%clk 0:00:25.3]} 36. Ng6+
{[%clk 0:01:02.2]} 36... Ke8 {[%clk 0:00:25.8]} 37. Qh8+ {[%clk 0:01:00.9]}
37... Kd7 {[%clk 0:00:23.3]} 38. Ne5+ {[%clk 0:01:01.4]} 38... Ke7 {[%clk
0:00:18.3]} 39. Qg7 {[%clk 0:00:58.5]} 39... Rf6 {[%clk 0:00:16.2]} 40. Ne4
{[%clk 0:00:58.7]} 40... Rf4 {[%clk 0:00:14.6]} 41. Nd2 {[%clk 0:00:51.3]} 41...
Qd6 {[%clk 0:00:13.4]} 42. Nxd3 {[%clk 0:00:49]} 42... Rf5 {[%clk 0:00:12.2]}
43. Qg4 {[%clk 0:00:48.4]} 43... Qf6 {[%clk 0:00:11.8]} 44. Qe4+ {[%clk
0:00:46.1]} 44... Kf8 {[%clk 0:00:11.8]} 45. Ne5 {[%clk 0:00:46.2]} 45... h5
{[%clk 0:00:10.9]} 46. Nd7+ {[%clk 0:00:46]} 1-0

[Event "Early-Titled-Tuesday-Blitz-October-24-2023"]
[Site "Chess.com"]
[Date "2023.10.24"]
[Round "11"]
[White "DarZay"]
[Black "Nick12772"]
[Result "0-1"]
[WhiteElo "2253"]
[BlackElo "2374"]
[TimeControl "180+1"]
[EndTime "10:02:37 PDT"]
[Termination "Nick12772 won by resignation"]

1. e4 {[%clk 0:03:00.9]} 1... e6 {[%clk 0:03:00.5]} 2. d4 {[%clk 0:03:00.3]}
2... d5 {[%clk 0:03:01.4]} 3. Bd3 {[%clk 0:03:00.4]} 3... Nf6 {[%clk 0:03:00.7]}
4. e5 {[%clk 0:02:59.3]} 4... Nfd7 {[%clk 0:03:01.2]} 5. c3 {[%clk 0:02:56.7]}
5... c5 {[%clk 0:03:01.4]} 6. Ne2 {[%clk 0:02:55.3]} 6... Nc6 {[%clk 0:03:01.7]}
7. O-O {[%clk 0:02:49.1]} 7... cxd4 {[%clk 0:02:57.1]} 8. cxd4 {[%clk
0:02:48.5]} 8... f6 {[%clk 0:02:57.7]} 9. f4 {[%clk 0:02:42.7]} 9... f5 {[%clk
0:02:54.2]} 10. Nbc3 {[%clk 0:02:37.3]} 10... Be7 {[%clk 0:02:53.5]} 11. Be3
{[%clk 0:02:34.3]} 11... O-O {[%clk 0:02:52.4]} 12. Qe1 {[%clk 0:02:29.8]} 12...
Qb6 {[%clk 0:02:34.3]} 13. Rb1 {[%clk 0:02:27.2]} 13... Nb4 {[%clk 0:02:30.9]}
14. Bc2 {[%clk 0:02:25.1]} 14... Nxc2 {[%clk 0:02:29.7]} 15. Qd2 {[%clk
0:02:22.7]} 15... Nxe3 {[%clk 0:02:27.9]} 16. Qxe3 {[%clk 0:02:23]} 16... Nb8
{[%clk 0:02:21.5]} 17. Kh1 {[%clk 0:02:21.7]} 17... Bd7 {[%clk 0:02:14.2]} 18.
g4 {[%clk 0:02:20.7]} 18... Bb5 {[%clk 0:02:09.2]} 19. gxf5 {[%clk 0:02:17.8]}
19... Bxe2 {[%clk 0:02:03]} 20. Nxe2 {[%clk 0:02:14.2]} 20... Rxf5 {[%clk
0:02:03.2]} 21. Qh3 {[%clk 0:02:12.7]} 21... Nc6 {[%clk 0:01:57.1]} 22. Rg1
{[%clk 0:02:03.6]} 22... Nxd4 {[%clk 0:01:38.9]} 23. Qh6 {[%clk 0:01:54.2]}
23... Rf7 {[%clk 0:01:09]} 24. f5 {[%clk 0:01:36.7]} 24... Nxf5 {[%clk
0:01:01.5]} 25. Qh5 {[%clk 0:01:33.1]} 25... Qe3 {[%clk 0:00:54.3]} 26. Rbe1
{[%clk 0:01:30.3]} 26... Nd4 {[%clk 0:00:49.2]} 27. Nxd4 {[%clk 0:00:49]} 27...
Qxd4 {[%clk 0:00:50.1]} 28. Qh6 {[%clk 0:00:45.5]} 28... Raf8 {[%clk 0:00:25.1]}
29. Qxe6 {[%clk 0:00:41.8]} 29... Bc5 {[%clk 0:00:25.4]} 30. Ref1 {[%clk
0:00:20]} 30... Kh8 {[%clk 0:00:18.7]} 31. Rd1 {[%clk 0:00:02.9]} 31... Qe4+
{[%clk 0:00:18.3]} 32. Rg2 {[%clk 0:00:03.3]} 32... Rf1+ {[%clk 0:00:17.8]} 0-1

[Event "Early-Titled-Tuesday-Blitz-October-24-2023"]
[Site "Chess.com"]
[Date "2023.10.24"]
[Round "11"]
[White "chess_blitz00"]
[Black "Nbk90"]
[Result "0-1"]
[WhiteElo "2492"]
[BlackElo "2244"]
[TimeControl "180+1"]
[EndTime "10:02:39 PDT"]
[Termination "Nbk90 won on time"]

1. d4 {[%clk 0:03:00.9]} 1... e6 {[%clk 0:02:57.6]} 2. h4 {[%clk 0:02:51.7]}
2... c5 {[%clk 0:02:53.9]} 3. e3 {[%clk 0:02:45.5]} 3... Nf6 {[%clk 0:02:51.1]}
4. c3 {[%clk 0:02:43.5]} 4... b6 {[%clk 0:02:50.3]} 5. Nf3 {[%clk 0:02:43.1]}
5... Ba6 {[%clk 0:02:50.1]} 6. h5 {[%clk 0:02:39.4]} 6... Bxf1 {[%clk
0:02:47.9]} 7. Kxf1 {[%clk 0:02:40.3]} 7... h6 {[%clk 0:02:44.1]} 8. g3 {[%clk
0:02:40.6]} 8... Qc7 {[%clk 0:02:43.1]} 9. Kg2 {[%clk 0:02:41]} 9... Qb7 {[%clk
0:02:42.2]} 10. Nd2 {[%clk 0:02:40.9]} 10... Nc6 {[%clk 0:02:37.4]} 11. Qe2
{[%clk 0:02:40.7]} 11... d5 {[%clk 0:02:36.1]} 12. b3 {[%clk 0:02:39.5]} 12...
Bd6 {[%clk 0:02:32.6]} 13. Bb2 {[%clk 0:02:39.6]} 13... O-O {[%clk 0:02:25.7]}
14. Rag1 {[%clk 0:02:36.1]} 14... e5 {[%clk 0:02:25.4]} 15. dxe5 {[%clk
0:02:32.5]} 15... Nxe5 {[%clk 0:02:26.3]} 16. Nxe5 {[%clk 0:02:32.8]} 16... Bxe5
{[%clk 0:02:26.1]} 17. Nf3 {[%clk 0:02:33.4]} 17... Rfe8 {[%clk 0:02:24.2]} 18.
Kf1 {[%clk 0:02:28.1]} 18... Ne4 {[%clk 0:02:13.7]} 19. g4 {[%clk 0:02:24.2]}
19... Bxc3 {[%clk 0:02:10.8]} 20. g5 {[%clk 0:02:10.9]} 20... Bxb2 {[%clk
0:01:54.7]} 21. Qxb2 {[%clk 0:01:59]} 21... Qa6+ {[%clk 0:01:26]} 22. Ke1 {[%clk
0:01:51]} 22... Qa5+ {[%clk 0:01:08.9]} 23. Kd1 {[%clk 0:01:51.1]} 23... d4
{[%clk 0:01:01.1]} 24. gxh6 {[%clk 0:01:46.6]} 24... Rad8 {[%clk 0:01:00.9]} 25.
Rxg7+ {[%clk 0:01:45.6]} 25... Kf8 {[%clk 0:01:00.5]} 26. Kc1 {[%clk 0:01:40.3]}
26... Nc3 {[%clk 0:00:55.5]} 27. Ng5 {[%clk 0:01:11.5]} 27... Rd7 {[%clk
0:00:29.2]} 28. Nh7+ {[%clk 0:00:03.2]} 28... Ke7 {[%clk 0:00:28.3]} 29. exd4
{[%clk 0:00:03]} 29... Kd8 {[%clk 0:00:19.5]} 30. a3 {[%clk 0:00:01.3]} 30...
Re2 {[%clk 0:00:16.7]} 0-1

[Event "Early-Titled-Tuesday-Blitz-October-24-2023"]
[Site "Chess.com"]
[Date "2023.10.24"]
[Round "11"]
[White "ideika"]
[Black "victormago"]
[Result "0-1"]
[WhiteElo "2276"]
[BlackElo "2414"]
[TimeControl "180+1"]
[EndTime "10:02:43 PDT"]
[Termination "victormago won by resignation"]

1. e4 {[%clk 0:02:57.8]} 1... c5 {[%clk 0:02:59.1]} 2. c3 {[%clk 0:02:58]} 2...
d5 {[%clk 0:02:58.6]} 3. exd5 {[%clk 0:02:58.2]} 3... Qxd5 {[%clk 0:02:59.2]} 4.
d4 {[%clk 0:02:58.9]} 4... g6 {[%clk 0:02:59.5]} 5. Nf3 {[%clk 0:02:58.1]} 5...
Bg7 {[%clk 0:02:59.3]} 6. Nbd2 {[%clk 0:02:02.7]} 6... cxd4 {[%clk 0:02:57.7]}
7. cxd4 {[%clk 0:02:03.6]} 7... Nf6 {[%clk 0:02:48.9]} 8. Bc4 {[%clk 0:01:20.7]}
8... Qd8 {[%clk 0:02:46.1]} 9. O-O {[%clk 0:01:21.1]} 9... O-O {[%clk
0:02:45.5]} 10. h3 {[%clk 0:01:19.9]} 10... a6 {[%clk 0:02:44.1]} 11. a4 {[%clk
0:01:19.5]} 11... Nc6 {[%clk 0:02:43.6]} 12. Re1 {[%clk 0:01:12.5]} 12... e6
{[%clk 0:02:36.5]} 13. Nb3 {[%clk 0:01:09.6]} 13... Na5 {[%clk 0:02:09]} 14. Bf1
{[%clk 0:01:05.4]} 14... Nd5 {[%clk 0:01:51.5]} 15. Be3 {[%clk 0:01:02.1]} 15...
Nxe3 {[%clk 0:01:43.6]} 16. fxe3 {[%clk 0:01:03]} 16... Bd7 {[%clk 0:01:40.8]}
17. Nbd2 {[%clk 0:01:02.2]} 17... Rc8 {[%clk 0:01:36.8]} 18. b4 {[%clk
0:00:59.3]} 18... Nc6 {[%clk 0:01:34.7]} 19. Qb3 {[%clk 0:00:51.9]} 19... Ne7
{[%clk 0:01:22.9]} 20. Nc4 {[%clk 0:00:51.2]} 20... Bc6 {[%clk 0:01:20.3]} 21.
Be2 {[%clk 0:00:44.7]} 21... Bd5 {[%clk 0:01:15.7]} 22. Nfe5 {[%clk 0:00:42.8]}
22... b5 {[%clk 0:01:10.9]} 23. axb5 {[%clk 0:00:26.8]} 23... axb5 {[%clk
0:01:09.3]} 24. Ra7 {[%clk 0:00:19.6]} 24... Bxc4 {[%clk 0:01:01.9]} 25. Nxc4
{[%clk 0:00:20.5]} 25... bxc4 {[%clk 0:01:01.5]} 26. Bxc4 {[%clk 0:00:20.9]}
26... Nd5 {[%clk 0:00:45.4]} 27. b5 {[%clk 0:00:19.3]} 27... Nxe3 {[%clk
0:00:33.5]} 28. b6 {[%clk 0:00:13.3]} 28... Nxc4 {[%clk 0:00:30.7]} 29. b7
{[%clk 0:00:13.5]} 29... Qxd4+ {[%clk 0:00:30.3]} 30. Kh1 {[%clk 0:00:11.5]}
30... Qxa7 {[%clk 0:00:28.5]} 31. bxc8=Q {[%clk 0:00:10.4]} 31... Rxc8 {[%clk
0:00:28.4]} 32. Rc1 {[%clk 0:00:10.4]} 32... Qc7 {[%clk 0:00:23.1]} 33. Kg1
{[%clk 0:00:08.5]} 33... h5 {[%clk 0:00:22.6]} 34. Kf1 {[%clk 0:00:09.1]} 34...
Qf4+ {[%clk 0:00:21.6]} 35. Ke2 {[%clk 0:00:09]} 35... Qxc1 {[%clk 0:00:21.6]}
0-1